fUSD/lending_fUSD_20250828
["ID","MTS","AMOUNT","RATE_DAILY","PERIOD"]
[381828940,1756361439388,-400.0,0.00018171,2]
[381828941,1756361439398,-400.0,0.00018171,2]
[381828942,1756361439408,-400.0,0.00018171,2]
[381828944,1756361439880,-489.66,0.00018171,2]
[381828945,1756361439897,-400.0,0.00018171,2]
[381828946,1756361439910,-400.0,0.00018171,2]
[381828947,1756361439919,-400.0,0.00018171,2]
[381828948,1756361439929,-400.0,0.00018171,2]
[381828949,1756361439944,-400.0,0.00018171,2]
[381828950,1756361439953,-400.0,0.00018171,2]
[381828951,1756361439962,-424.46,0.00018171,2]
[381828952,1756361439971,-388.17893972,0.00018171,2]
[381828953,1756361439981,-400.0,0.00018171,2]
[381828954,1756361439991,-400.0,0.00018171,2]
[381828955,1756361440000,-400.0,0.00018171,2]
[381828956,1756361440011,-400.0,0.00018171,2]
[381828957,1756361440020,-400.0,0.00018171,2]
[381828958,1756361440029,-400.0,0.00018171,2]
[381828959,1756361440038,-480.35912699,0.00018171,2]
[381828960,1756361440048,-400.0,0.00018171,2]
[381828961,1756361440057,-400.0,0.00018171,2]
[381828962,1756361440066,-400.0,0.00018171,2]
[381828963,1756361440075,-400.0,0.00018171,2]
[381828964,1756361440084,-400.0,0.00018171,2]
[381828965,1756361440093,-400.0,0.00018171,2]
[381828966,1756361440103,-400.0,0.00018171,2]
[381828967,1756361440113,-400.0,0.00018171,2]
[381828968,1756361440122,-400.0,0.00018171,2]
[381828969,1756361440131,-400.0,0.00018171,2]
[381828970,1756361440140,-67.02370604,0.00018171,2]
[381828971,1756361440165,-332.97629396,0.00018171,2]
[381828972,1756361440175,-400.0,0.00018171,2]
[381828973,1756361440183,-482.59900075,0.00018171,2]
[381828974,1756361440193,-400.0,0.00018171,2]
[381828975,1756361440202,-400.0,0.00018171,2]
[381828976,1756361440211,-400.0,0.00018171,2]
[381828977,1756361440220,-400.0,0.00018171,2]
[381828978,1756361440230,-400.0,0.00018171,2]
[381828979,1756361440239,-400.0,0.00018171,2]
[381828980,1756361440248,-400.0,0.00018171,2]
[381828981,1756361440257,-400.0,0.00018171,2]
[381828982,1756361440267,-400.0,0.00018171,2]
[381828983,1756361440277,-400.0,0.00018171,2]
[381828984,1756361440286,-454.6470224,0.00018171,2]
[381828985,1756361440296,-356.94,0.00018171,2]
[381828986,1756361440305,-400.0,0.00018171,2]
[381828987,1756361440315,-400.0,0.00018171,2]
[381828989,1756361440324,-400.0,0.00018171,2]
[381828990,1756361440333,-400.0,0.00018171,2]
[381828991,1756361440342,-355.04,0.00018171,2]
[381828992,1756361440352,-400.0,0.00018171,2]
[381828993,1756361440362,-446.72,0.00018171,2]
[381828994,1756361440371,-206.27768289,0.00018171,2]
[381828995,1756361440383,-437.23231711,0.00018171,2]
[381828996,1756361440392,-1878.44,0.00018171,2]
[381828997,1756361440401,-400.0,0.00018171,2]
[381828998,1756361440410,-400.0,0.00018171,2]
[381828999,1756361440419,-400.0,0.00018171,2]
[381829000,1756361440429,-400.0,0.00018171,2]
[381829001,1756361440438,-296.52768289,0.00018171,2]
[381829002,1756361440454,-103.47231711,0.00018171,2]
[381829003,1756361440463,-400.0,0.00018171,2]
[381829004,1756361440472,-400.0,0.00018171,2]
[381829005,1756361440482,-402.54658311,0.00018171,2]
[381829006,1756361440491,-400.0,0.00018171,2]
[381829007,1756361440500,-400.0,0.00018171,2]
[381829008,1756361440510,-30.75314654,0.00018171,2]
[381829009,1756361440629,-369.24685346,0.00018171,2]
[381829010,1756361440638,-1799.22,0.00018171,2]
[381829011,1756361440649,-940.7,0.00018171,2]
[381829012,1756361440660,-420.22,0.00018171,2]
[381829013,1756361440669,-400.0,0.00018171,2]
[381829014,1756361440679,-400.0,0.00018171,2]
[381829015,1756361440690,-525.26635655,0.00018173,2]
[381829016,1756361440700,-500.0,0.00018173,2]
[381829017,1756361440711,-500.0,0.00018173,2]
[381829018,1756361440721,-500.0,0.00018173,2]
[381829019,1756361440734,-500.0,0.00018173,2]
[381829020,1756361440746,-500.0,0.00018173,2]
[381829021,1756361440756,-500.0,0.00018173,2]
[381829022,1756361440765,-500.0,0.00018173,2]
[381829023,1756361440775,-459.41116949,0.00018173,2]
[381829024,1756361440784,-597.50921259,0.00018173,2]
[381829025,1756361440794,-452.49722919,0.00018173,2]
[381829026,1756361440804,-500.0,0.00018173,2]
[381829027,1756361440813,-500.0,0.00018265,2]
[381829028,1756361440823,-1140.29124724,0.00018316,2]
[381829029,1756361440832,-170.24089506,0.00018345,2]
[381829030,1756361440842,-900.0,0.00018415,2]
[381829031,1756361440851,-900.0,0.00018415,2]
[381829032,1756361440860,-900.0,0.00018415,2]
[381829033,1756361440869,-900.0,0.00018415,2]
[381829034,1756361440878,-900.0,0.00018415,2]
[381829035,1756361440888,-754.95710051,0.00018415,2]
[381829036,1756361440897,-156.48,0.00018435,2]
[381829037,1756361440907,-400.0,0.00018444,2]
[381829038,1756361440916,-400.0,0.00018444,2]
[381829039,1756361440936,-400.0,0.00018444,2]
[381829040,1756361440955,-400.0,0.00018444,2]
[381829041,1756361440964,-400.0,0.00018444,2]
[381829042,1756361440973,-400.0,0.00018444,2]
[381829043,1756361440982,-400.0,0.00018444,2]
[381829044,1756361440992,-478.99,0.00018444,2]
[381829045,1756361441002,-400.0,0.00018444,2]
[381829046,1756361441013,-844.93374113,0.00018445,2]
[381829047,1756361441022,-172.29062971,0.00018445,2]
[381829048,1756361441032,-400.0,0.00018445,2]
[381829049,1756361441041,-400.0,0.00018445,2]
[381829050,1756361441051,-400.0,0.00018445,2]
[381829051,1756361441061,-400.0,0.00018445,2]
[381829052,1756361441070,-296.56,0.00018445,2]
[381829053,1756361441080,-316.43,0.00018445,2]
[381829054,1756361441090,-400.0,0.00018445,2]
[381829055,1756361441099,-400.0,0.00018445,2]
[381829056,1756361441109,-400.0,0.00018445,2]
[381829057,1756361441118,-417.46,0.00018445,2]
[381829058,1756361441127,-505.28,0.00018445,2]
[381829059,1756361441137,-187.72,0.00018445,2]
[381829060,1756361441146,-346.05,0.00018445,2]
[381829061,1756361441155,-400.0,0.00018445,2]
[381829062,1756361441164,-400.0,0.00018445,2]
[381829063,1756361441174,-400.0,0.00018445,2]
[381829064,1756361441183,-413.95,0.00018445,2]
[381829065,1756361441193,-347.15,0.00018445,2]
[381829066,1756361441206,-219.8,0.00018445,2]
[381829067,1756361441215,-351.49,0.00018445,2]
[381829068,1756361441224,-362.29,0.00018445,2]
[381829069,1756361441234,-400.0,0.00018445,2]
[381829070,1756361441243,-312.53,0.00018445,2]
[381829071,1756361441253,-481.6,0.00018445,2]
[381829072,1756361441263,-303.26,0.00018445,2]
[381829073,1756361441272,-270.09,0.00018445,2]
[381829074,1756361441282,-279.1,0.00018445,2]
[381829075,1756361441292,-246.44,0.00018445,2]
[381829076,1756361441302,-364.46,0.00018445,2]
[381829077,1756361441311,-227.44360682,0.00018445,2]
[381829078,1756361441321,-400.0,0.00018445,2]
[381829079,1756361441332,-322.45,0.00018445,2]
[381829080,1756361441341,-386.26,0.00018445,2]
[381829081,1756361441351,-400.0,0.00018445,2]
[381829082,1756361441360,-408.45,0.00018445,2]
[381829083,1756361441371,-400.0,0.00018445,2]
[381829084,1756361441380,-400.0,0.00018445,2]
[381829085,1756361441389,-234.62,0.00018445,2]
[381829086,1756361441399,-424.9,0.00018445,2]
[381829087,1756361441408,-319.43,0.00018445,2]
[381829088,1756361441418,-238.53,0.00018445,2]
[381829089,1756361441427,-400.0,0.00018445,2]
[381829090,1756361441437,-400.0,0.00018445,2]
[381829091,1756361441446,-440.73,0.00018445,2]
[381829092,1756361441455,-233.11,0.00018445,2]
[381829093,1756361441465,-400.0,0.00018445,2]
[381829094,1756361441475,-195.78,0.00018445,2]
[381829095,1756361441484,-473.84,0.00018445,2]
[381829096,1756361441494,-182.93,0.00018445,2]
[381829097,1756361441503,-400.0,0.00018445,2]
[381829099,1756361441513,-318.01,0.00018445,2]
[381829100,1756361441522,-271.42,0.00018445,2]
[381829101,1756361441532,-250.67,0.00018445,2]
[381829102,1756361441541,-400.0,0.00018445,2]
[381829103,1756361441551,-220.32,0.00018445,2]
[381829104,1756361441560,-479.71,0.00018445,2]
[381829105,1756361441570,-400.0,0.00018445,2]
[381829106,1756361441579,-400.0,0.00018445,2]
[381829107,1756361441589,-400.0,0.00018445,2]
[381829108,1756361441598,-400.0,0.00018445,2]
[381829109,1756361441607,-400.0,0.00018445,2]
[381829110,1756361441617,-389.93,0.00018445,2]
[381829111,1756361441627,-228.22,0.00018445,2]
[381829112,1756361441636,-201.22,0.00018445,2]
[381829113,1756361441645,-154.65,0.00018445,2]
[381829114,1756361441654,-400.0,0.00018445,2]
[381829115,1756361441663,-400.0,0.00018445,2]
[381829116,1756361441673,-400.0,0.00018445,2]
[381829117,1756361441683,-400.0,0.00018445,2]
[381829118,1756361441692,-270.92276836,0.00018445,2]
[381829119,1756361441702,-400.0,0.00018445,2]
[381829120,1756361441712,-400.0,0.00018445,2]
[381829121,1756361441721,-209.23115447,0.00018445,2]
[381829122,1756361441730,-400.0,0.00018445,2]
[381829123,1756361441739,-412.31,0.00018445,2]
[381829124,1756361441749,-454.07,0.00018445,2]
[381829125,1756361441758,-400.0,0.00018445,2]
[381829126,1756361441769,-400.0,0.00018445,2]
[381829127,1756361441778,-400.0,0.00018445,2]
[381829128,1756361441788,-400.0,0.00018445,2]
[381829129,1756361441797,-202.69,0.00018445,2]
[381829130,1756361441806,-346.88104335,0.00018445,2]
[381829131,1756361441815,-400.0,0.00018445,2]
[381829132,1756361441825,-400.0,0.00018445,2]
[381829133,1756361441834,-400.0,0.00018445,2]
[381829134,1756361441843,-493.73307894,0.00018445,2]
[381829135,1756361441853,-520.35,0.00018445,2]
[381829136,1756361441862,-400.0,0.00018445,2]
[381829137,1756361441871,-400.0,0.00018445,2]
[381829138,1756361441880,-259.93,0.00018445,2]
[381829139,1756361441889,-400.0,0.00018445,2]
[381829140,1756361441899,-400.0,0.00018445,2]
[381829141,1756361441908,-400.0,0.00018445,2]
[381829142,1756361441919,-400.0,0.00018445,2]
[381829143,1756361441928,-400.0,0.00018445,2]
[381829144,1756361441942,-400.0,0.00018445,2]
[381829145,1756361441951,-400.0,0.00018445,2]
[381829146,1756361441961,-400.0,0.00018445,2]
[381829147,1756361441970,-400.0,0.00018445,2]
[381829148,1756361441982,-400.0,0.00018445,2]
[381829149,1756361441991,-446.73,0.00018445,2]
[381829150,1756361442001,-400.0,0.00018445,2]
[381829151,1756361442013,-229.06,0.00018445,2]
[381829152,1756361442022,-400.0,0.00018445,2]
[381829153,1756361442033,-400.0,0.00018445,2]
[381829154,1756361442042,-500.39,0.00018445,2]
[381829155,1756361442051,-400.0,0.00018445,2]
[381829156,1756361442060,-400.0,0.00018445,2]
[381829157,1756361442069,-400.0,0.00018445,2]
[381829158,1756361442079,-400.0,0.00018445,2]
[381829159,1756361442089,-400.0,0.00018445,2]
[381829160,1756361442100,-400.0,0.00018445,2]
[381829161,1756361442110,-400.0,0.00018445,2]
[381829162,1756361442119,-400.0,0.00018445,2]
[381829163,1756361442128,-400.0,0.00018445,2]
[381829164,1756361442139,-400.0,0.00018445,2]
[381829165,1756361442149,-443.55,0.00018445,2]
[381829166,1756361442158,-400.0,0.00018445,2]
[381829167,1756361442169,-520.36,0.00018445,2]
[381829168,1756361442178,-400.0,0.00018445,2]
[381829169,1756361442187,-400.0,0.00018445,2]
[381829170,1756361442197,-400.0,0.00018445,2]
[381829171,1756361442206,-442.01,0.00018445,2]
[381829172,1756361442215,-400.0,0.00018445,2]
[381829173,1756361442224,-308.04,0.00018445,2]
[381829174,1756361442233,-400.0,0.00018445,2]
[381829175,1756361442242,-400.0,0.00018445,2]
[381829176,1756361442253,-400.0,0.00018445,2]
[381829177,1756361442262,-246.67,0.00018445,2]
[381829178,1756361442272,-400.0,0.00018445,2]
[381829179,1756361442281,-400.0,0.00018445,2]
[381829180,1756361442291,-400.0,0.00018445,2]
[381829181,1756361442300,-400.0,0.00018445,2]
[381829182,1756361442309,-400.0,0.00018445,2]
[381829183,1756361442318,-400.0,0.00018445,2]
[381829184,1756361442328,-367.87,0.00018445,2]
[381829185,1756361442337,-400.0,0.00018445,2]
[381829186,1756361442346,-400.0,0.00018445,2]
[381829187,1756361442359,-446.72,0.00018445,2]
[381829188,1756361442368,-643.51,0.00018445,2]
[381829189,1756361442378,-1878.44,0.00018445,2]
[381829190,1756361442386,-400.0,0.00018445,2]
[381829191,1756361442396,-346.77565698,0.00018445,2]
[381829192,1756361442405,-400.0,0.00018445,2]
[381829193,1756361442414,-400.0,0.00018445,2]
[381829194,1756361442423,-400.0,0.00018445,2]
[381829195,1756361442432,-400.0,0.00018445,2]
[381829196,1756361442441,-400.0,0.00018445,2]
[381829197,1756361442450,-400.0,0.00018445,2]
[381829198,1756361442460,-400.0,0.00018445,2]
[381829199,1756361442469,-400.0,0.00018445,2]
[381829200,1756361442478,-1799.22,0.00018445,2]
[381829201,1756361442487,-940.7,0.00018445,2]
[381829202,1756361442496,-400.0,0.00018445,2]
[381829203,1756361442506,-1228.77,0.00018533,2]
[381829204,1756361442515,-150.99,0.00018533,2]
[381829205,1756361442524,-400.0,0.00018543,2]
[381829206,1756361442533,-769.51,0.00018543,2]
[381829207,1756361442543,-400.0,0.00018543,2]
[381829208,1756361442552,-401.96455243,0.00018543,2]
[381829209,1756361442561,-400.0,0.00018543,2]
[381829210,1756361442570,-401.87908811,0.00018543,2]
[381829211,1756361442579,-400.0,0.00018544,2]
[381829212,1756361442588,-400.0,0.00018544,2]
[381829213,1756361442597,-400.0,0.00018544,2]
[381829214,1756361442607,-400.0,0.00018544,2]
[381829215,1756361442615,-400.0,0.00018544,2]
[381829216,1756361442624,-400.0,0.00018544,2]
[381829217,1756361442634,-400.0,0.00018544,2]
[381829218,1756361442643,-400.0,0.00018544,2]
[381829219,1756361442651,-400.0,0.00018544,2]
[381829220,1756361442660,-400.0,0.00018544,2]
[381829221,1756361442669,-400.0,0.00018544,2]
[381829222,1756361442678,-400.0,0.00018544,2]
[381829223,1756361442686,-400.0,0.00018544,2]
[381829224,1756361442696,-400.0,0.00018544,2]
[381829225,1756361442704,-400.0,0.00018544,2]
[381829226,1756361442713,-400.0,0.00018544,2]
[381829227,1756361442722,-400.0,0.00018544,2]
[381829228,1756361442731,-400.0,0.00018544,2]
[381829229,1756361442740,-400.0,0.00018544,2]
[381829230,1756361442749,-400.0,0.00018544,2]
[381829231,1756361442758,-400.0,0.00018544,2]
[381829232,1756361442767,-400.0,0.00018544,2]
[381829233,1756361442776,-721.86,0.00018544,2]
[381829234,1756361442785,-400.0,0.00018544,2]
[381829235,1756361442794,-400.0,0.00018545,2]
[381829236,1756361442803,-379.31292888,0.00018619,2]
[381829237,1756361442812,-248.71531821,0.00018638,2]
[381829238,1756361442820,-150.01,0.00018657,2]
[381829239,1756361442829,-400.0,0.00018717,2]
[381829240,1756361442838,-400.0,0.00018717,2]
[381829241,1756361442846,-400.0,0.00018717,2]
[381829242,1756361442855,-400.0,0.00018717,2]
[381829243,1756361442865,-400.0,0.00018717,2]
[381829244,1756361442876,-400.0,0.00018717,2]
[381829245,1756361442885,-400.0,0.00018717,2]
[381829246,1756361442894,-400.0,0.00018717,2]
[381829247,1756361442903,-400.0,0.00018717,2]
[381829248,1756361442912,-497.26,0.00018718,2]
[381829249,1756361442921,-400.0,0.00018718,2]
[381829250,1756361442930,-400.0,0.00018718,2]
[381829251,1756361442945,-400.0,0.00018718,2]
[381829252,1756361442955,-400.0,0.00018718,2]
[381829253,1756361442965,-400.0,0.00018718,2]
[381829254,1756361442975,-400.0,0.00018718,2]
[381829255,1756361442985,-400.0,0.00018718,2]
[381829256,1756361442995,-400.0,0.00018718,2]
[381829257,1756361443004,-400.0,0.00018718,2]
[381829258,1756361443015,-400.0,0.00018718,2]
[381829259,1756361443025,-400.0,0.00018718,2]
[381829261,1756361443034,-494.45,0.00018718,2]
[381829262,1756361443043,-400.0,0.00018718,2]
[381829263,1756361443052,-400.0,0.00018718,2]
[381829264,1756361443061,-400.0,0.00018718,2]
[381829265,1756361443071,-493.68,0.00018718,2]
[381829266,1756361443080,-481.35,0.00018718,2]
[381829267,1756361443089,-400.0,0.00018718,2]
[381829268,1756361443099,-400.0,0.00018718,2]
[381829269,1756361443108,-400.0,0.00018718,2]
[381829270,1756361443118,-400.0,0.00018718,2]
[381829271,1756361443127,-400.0,0.00018718,2]
[381829272,1756361443137,-400.0,0.00018718,2]
[381829273,1756361443146,-400.0,0.00018718,2]
[381829274,1756361443156,-400.0,0.00018718,2]
[381829275,1756361443165,-400.0,0.00018718,2]
[381829276,1756361443175,-400.0,0.00018718,2]
[381829277,1756361443184,-400.0,0.00018718,2]
[381829279,1756361443194,-400.0,0.00018718,2]
[381829281,1756361443203,-400.0,0.00018718,2]
[381829282,1756361443212,-400.0,0.00018718,2]
[381829283,1756361443221,-400.0,0.00018718,2]
[381829284,1756361443230,-400.0,0.00018718,2]
[381829285,1756361443239,-400.0,0.00018718,2]
[381829286,1756361443250,-400.0,0.00018718,2]
[381829287,1756361443259,-400.0,0.00018718,2]
[381829288,1756361443268,-400.0,0.00018718,2]
[381829289,1756361443278,-535.4,0.00018718,2]
[381829290,1756361443287,-400.0,0.00018718,2]
[381829291,1756361443296,-400.0,0.00018718,2]
[381829292,1756361443306,-400.0,0.00018718,2]
[381829293,1756361443315,-400.0,0.00018718,2]
[381829294,1756361443324,-400.0,0.00018718,2]
[381829295,1756361443334,-400.0,0.00018718,2]
[381829296,1756361443343,-400.0,0.00018718,2]
[381829297,1756361443352,-478.94,0.00018718,2]
[381829298,1756361443362,-401.74314596,0.00018718,2]
[381829299,1756361443370,-400.0,0.00018718,2]
[381829300,1756361443379,-400.0,0.00018718,2]
[381829301,1756361443388,-400.0,0.00018718,2]
[381829302,1756361443398,-400.0,0.00018718,2]
[381829303,1756361443407,-400.0,0.00018718,2]
[381829304,1756361443417,-400.0,0.00018718,2]
[381829305,1756361443426,-400.0,0.00018718,2]
[381829306,1756361443435,-400.0,0.00018718,2]
[381829307,1756361443444,-400.0,0.00018718,2]
[381829308,1756361443454,-512.46,0.00018718,2]
[381829309,1756361443463,-400.0,0.00018718,2]
[381829310,1756361443472,-400.0,0.00018718,2]
[381829311,1756361443481,-400.0,0.00018718,2]
[381829312,1756361443490,-400.0,0.00018718,2]
[381829313,1756361443500,-400.0,0.00018718,2]
[381829314,1756361443509,-400.0,0.00018718,2]
[381829315,1756361443521,-400.0,0.00018718,2]
[381829316,1756361443530,-510.99,0.00018718,2]
[381829317,1756361443540,-400.0,0.00018718,2]
[381829318,1756361443550,-400.0,0.00018718,2]
[381829319,1756361443559,-400.0,0.00018718,2]
[381829320,1756361443568,-400.0,0.00018718,2]
[381829321,1756361443577,-400.0,0.00018718,2]
[381829322,1756361443586,-400.0,0.00018718,2]
[381829323,1756361443595,-400.0,0.00018718,2]
[381829324,1756361443604,-400.0,0.00018718,2]
[381829325,1756361443614,-1611.70991358,0.00018718,2]
[381829326,1756361443623,-400.0,0.00018718,2]
[381829327,1756361443633,-400.0,0.00018718,2]
[381829328,1756361443642,-400.0,0.00018718,2]
[381829329,1756361443651,-400.0,0.00018718,2]
[381829330,1756361443661,-400.0,0.00018718,2]
[381829331,1756361443670,-400.0,0.00018718,2]
[381829332,1756361443679,-186.8,0.00018718,2]
[381829333,1756361443689,-400.0,0.00018718,2]
[381829334,1756361443698,-402.85,0.00018718,2]
[381829335,1756361443707,-400.0,0.00018718,2]
[381829336,1756361443717,-400.0,0.00018718,2]
[381829337,1756361443888,-400.0,0.00018718,2]
[381829338,1756361443899,-400.0,0.00018718,2]
[381829339,1756361443908,-400.0,0.00018718,2]
[381829340,1756361443917,-481.67,0.00018718,2]
[381829341,1756361443927,-400.0,0.00018718,2]
[381829342,1756361443940,-400.0,0.00018718,2]
[381829343,1756361443950,-400.0,0.00018718,2]
[381829344,1756361443959,-400.0,0.00018718,2]
[381829345,1756361443968,-400.0,0.00018718,2]
[381829346,1756361443979,-402.54496465,0.00018718,2]
[381829347,1756361443991,-400.0,0.00018718,2]
[381829348,1756361444000,-400.0,0.00018718,2]
[381829349,1756361444011,-217.13,0.00018718,2]
[381829350,1756361444020,-400.0,0.00018718,2]
[381829351,1756361444030,-400.0,0.00018718,2]
[381829352,1756361444039,-400.0,0.00018718,2]
[381829353,1756361444049,-400.0,0.00018718,2]
[381829354,1756361444059,-400.0,0.00018718,2]
[381829355,1756361444068,-400.0,0.00018718,2]
[381829356,1756361444079,-368.94,0.00018718,2]
[381829357,1756361444088,-400.0,0.00018718,2]
[381829358,1756361444098,-400.0,0.00018718,2]
[381829359,1756361444108,-400.0,0.00018718,2]
[381829360,1756361444119,-400.0,0.00018718,2]
[381829361,1756361444129,-400.0,0.00018718,2]
[381829362,1756361444139,-478.99,0.00018718,2]
[381829363,1756361444148,-400.0,0.00018718,2]
[381829364,1756361444158,-400.0,0.00018718,2]
[381829365,1756361444167,-400.0,0.00018718,2]
[381829366,1756361444176,-400.0,0.00018718,2]
[381829367,1756361444185,-414.0093078,0.00018718,2]
[381829368,1756361444195,-403.35240207,0.00018718,2]
[381829369,1756361444204,-400.0,0.00018718,2]
[381829370,1756361444214,-402.02771016,0.00018718,2]
[381829371,1756361444223,-394.49,0.00018718,2]
[381829372,1756361444232,-400.0,0.00018718,2]
[381829373,1756361444242,-400.0,0.00018718,2]
[381829374,1756361444251,-500.0,0.00018718,2]
[381829375,1756361444260,-400.0,0.00018718,2]
[381829376,1756361444270,-510.12,0.00018718,2]
[381829377,1756361444279,-400.0,0.00018718,2]
[381829378,1756361444289,-400.0,0.00018718,2]
[381829379,1756361444298,-400.0,0.00018718,2]
[381829380,1756361444308,-400.0,0.00018718,2]
[381829381,1756361444317,-194.35,0.00018718,2]
[381829382,1756361444327,-400.0,0.00018718,2]
[381829383,1756361444336,-400.0,0.00018718,2]
[381829384,1756361444345,-412.33431104,0.00018718,2]
[381829385,1756361444354,-400.0,0.00018719,2]
[381829386,1756361444364,-400.0,0.00018719,2]
[381829387,1756361444373,-400.0,0.00018719,2]
[381829388,1756361444382,-400.0,0.00018719,2]
[381829389,1756361444392,-218.91,0.00018719,2]
[381829390,1756361444401,-400.0,0.00018719,2]
[381829391,1756361444411,-400.0,0.00018719,2]
[381829392,1756361444420,-400.0,0.00018719,2]
[381829393,1756361444429,-400.0,0.00018719,2]
[381829394,1756361444438,-400.0,0.00018719,2]
[381829395,1756361444448,-400.0,0.00018719,2]
[381829396,1756361444457,-400.0,0.00018719,2]
[381829397,1756361444466,-243.59,0.00018719,2]
[381829398,1756361444476,-203.43,0.00018719,2]
[381829399,1756361444485,-400.0,0.00018719,2]
[381829400,1756361444495,-400.0,0.00018719,2]
[381829401,1756361444504,-173.83,0.00018719,2]
[381829402,1756361444513,-310.97,0.00018719,2]
[381829403,1756361444523,-168.97,0.00018719,2]
[381829404,1756361444533,-205.27,0.00018719,2]
[381829405,1756361444543,-400.0,0.00018719,2]
[381829406,1756361444552,-289.97,0.00018719,2]
[381829407,1756361444562,-285.17,0.00018719,2]
[381829408,1756361444571,-400.0,0.00018719,2]
[381829409,1756361444580,-400.0,0.00018719,2]
[381829410,1756361444590,-160.42,0.00018719,2]
[381829411,1756361444599,-400.0,0.00018719,2]
[381829412,1756361444609,-400.0,0.00018719,2]
[381829413,1756361444621,-400.0,0.00018719,2]
[381829414,1756361444631,-400.0,0.00018719,2]
[381829415,1756361444640,-400.0,0.00018719,2]
[381829416,1756361444649,-269.22733909,0.00018719,2]
[381829417,1756361444658,-400.0,0.00018719,2]
[381829418,1756361444667,-549.93,0.00018719,2]
[381829419,1756361444676,-400.0,0.00018719,2]
[381829420,1756361444686,-400.0,0.00018719,2]
[381829421,1756361444696,-400.0,0.00018719,2]
[381829422,1756361444706,-393.33,0.00018719,2]
[381829423,1756361444716,-379.83,0.00018719,2]
[381829424,1756361444725,-517.06,0.00018719,2]
[381829425,1756361444735,-400.0,0.00018719,2]
[381829426,1756361444744,-480.71,0.00018719,2]
[381829427,1756361444753,-457.18,0.00018719,2]
[381829428,1756361444762,-400.0,0.00018719,2]
[381829429,1756361444771,-298.74,0.00018719,2]
[381829430,1756361444781,-377.35808191,0.00018719,2]
[381829431,1756361444791,-201.68,0.00018719,2]
[381829432,1756361444800,-379.01,0.00018719,2]
[381829433,1756361444810,-400.0,0.00018719,2]
[381829434,1756361444819,-400.0,0.00018719,2]
[381829435,1756361444829,-463.46,0.00018719,2]
[381829436,1756361444838,-405.89,0.00018719,2]
[381829437,1756361444847,-298.0,0.00018719,2]
[381829438,1756361444857,-400.0,0.00018719,2]
[381829439,1756361444866,-400.0,0.00018719,2]
[381829440,1756361444876,-400.0,0.00018719,2]
[381829441,1756361444886,-400.0,0.00018719,2]
[381829442,1756361444895,-400.0,0.00018719,2]
[381829443,1756361444905,-400.0,0.00018719,2]
[381829444,1756361444915,-400.0,0.00018719,2]
[381829445,1756361444924,-400.0,0.00018719,2]